lending/lending_fUSD_20250224
["ID","MTS","AMOUNT","RATE_DAILY","PERIOD"]
[354299422,1740400256950,-17696.27041726,0.000166,4]
[354299423,1740400256961,-515.811067,0.000166,4]
[354299424,1740400256972,-475.33246739,0.000166,4]
[354299425,1740400256983,-565.99524606,0.000166,4]
[354299426,1740400256994,-5219.12795026,0.000166,4]
[354299427,1740400257005,-507.53028692,0.000166,4]
[354299428,1740400257016,-379277.69500995,0.000166,4]
[354299429,1740400257056,-500.0,0.00016438,2]
[354299430,1740400257065,-382.32945671,0.000166,4]
[354299431,1740400257075,-10042.99975611,0.000166,4]
[354299433,1740400419271,162.47,8.767e-05,2]
[354299434,1740401062182,1871.17584024,9e-05,2]
[354299451,1740401431638,-291.5349804,0.00013,2]
[354299452,1740401431693,-258.4650196,0.00013,2]
[354299453,1740401431702,-804.72052435,0.00013607,2]
[354299454,1740401431714,-185.83947565,0.00013607,2]
[354299455,1740401431723,-175.41,0.00013699,2]
[354299456,1740401431732,-17.4020196,0.00015,2]
[354299457,1740401431749,-582.5979804,0.00015,2]
[354299458,1740401431763,-1000.0,0.00015059,2]
[354299459,1740401431772,-300.0,0.00015395,2]
[354299460,1740401431781,-832.98197176,0.00015396,2]
[354299461,1740401431793,-586.2,0.00015396,2]
[354299462,1740401433490,150.29,8.767e-05,2]
[354299463,1740401435096,-400.0,0.00015396,2]
[354299464,1740401435108,-2605.21471463,0.00015396,2]
[354299465,1740401435152,-602.51,0.00015468,2]
[354299466,1740401435163,-200.0,0.00015497,2]
[354299467,1740401435172,-500.0,0.00015616,2]
[354299468,1740401435181,-162.237083,0.00015775,5]
[354299469,1740401435190,-990.56,0.00015871,2]
[354299470,1740401435199,-380.4753763,0.00016267,2]
[354299471,1740401435209,-1524.66073983,0.00016354,2]
[354299472,1740401435218,-150.0,0.00016384,2]
[354299473,1740401435230,-344.22812849,0.000164,2]
[354299474,1740401435240,-500.0,0.00016438,2]
[354299475,1740401435249,-179.72382174,0.00016438,2]
[354299476,1740401435259,-500.0,0.00016438,2]
[354299477,1740401435269,-500.0,0.00016438,2]
[354299479,1740401435278,-500.0,0.00016438,2]
[354299480,1740401435287,-502.62664186,0.00016438,2]
[354299482,1740401435296,-503.98032584,0.00016438,2]
[354299484,1740401435306,-507.55687402,0.00016438,2]
[354299486,1740401435315,-511.11349447,0.00016438,2]
[354299488,1740401435324,-500.0,0.00016438,2]
[354299490,1740401435333,-500.0,0.00016438,2]
[354299492,1740401435342,-504.12846145,0.00016438,2]
[354299494,1740401435352,-507.38752517,0.00016438,2]
[354299496,1740401435361,-503.63180215,0.00016438,2]
[354299498,1740401435370,-500.0,0.00016438,2]
[354299500,1740401435379,-510.65114462,0.00016438,2]
[354299502,1740401435388,-504.77152095,0.00016438,2]
[354299504,1740401435397,-415.29699495,0.00016438,2]
[354299506,1740401435406,-300.65375678,0.00016438,2]
[354299508,1740401435415,-500.0,0.00016438,2]
[354299510,1740401435425,-500.0,0.00016438,2]
[354299512,1740401435434,-179.76323443,0.00016438,2]
[354299514,1740401435443,-151.98695088,0.00016438,2]
[354299516,1740401435453,-520.15491983,0.00016438,2]
[354299518,1740401435462,-500.0,0.00016438,2]
[354299520,1740401435472,-499.39519986,0.00016438,2]
[354299522,1740401435481,-500.0,0.00016438,2]
[354299525,1740401435491,-568.52446071,0.00016438,2]
[354299527,1740401435500,-500.0,0.00016438,2]
[354299530,1740401435509,-500.0,0.00016438,2]
[354299533,1740401435518,-500.0,0.00016438,2]
[354299536,1740401435527,-500.0,0.00016438,2]
[354299539,1740401435536,-446.50901543,0.00016438,2]
[354299542,1740401435546,-155.64607782,0.00016438,2]
[354299545,1740401435556,-432.82920488,0.00016438,2]
[354299548,1740401435565,-1909.72,0.00016438,2]
[354299551,1740401435575,-500.0,0.00016438,2]
[354299554,1740401435585,-500.0,0.00016438,2]
[354299557,1740401435594,-542.59951151,0.00016438,2]
[354299560,1740401435605,-500.0,0.00016438,2]
[354299563,1740401435614,-509.50693924,0.00016438,2]
[354299566,1740401435623,-247.30871746,0.00016438,2]
[354299569,1740401435632,-479.45048443,0.00016438,2]
[354299571,1740401435642,-248.31385425,0.00016438,2]
[354299573,1740401435652,-500.0,0.00016438,2]
[354299576,1740401435662,-500.0,0.00016438,2]
[354299579,1740401435671,-509.57459884,0.00016438,2]
[354299581,1740401435681,-500.0,0.00016438,2]
[354299583,1740401435691,-510.43120431,0.00016438,2]
[354299585,1740401435701,-322.56781978,0.00016438,2]
[354299587,1740401435710,-500.0,0.00016438,2]
[354299589,1740401435719,-500.0,0.00016438,2]
[354299591,1740401435729,-500.0,0.00016438,2]
[354299593,1740401435739,-505.52192141,0.00016438,2]
[354299595,1740401435748,-531.66895706,0.00016438,2]
[354299598,1740401435762,-542.50062996,0.00016438,2]
[354299599,1740401435771,-500.0,0.00016438,2]
[354299602,1740401435780,-500.0,0.00016438,2]
[354299603,1740401435790,-372.1915511,0.00016438,2]
[354299606,1740401435800,-628.38973167,0.00016438,2]
[354299608,1740401435810,-500.0,0.00016438,2]
[354299610,1740401435820,-500.0,0.00016438,2]
[354299612,1740401435830,-500.0,0.00016438,2]
[354299614,1740401435840,-500.0,0.00016438,2]
[354299616,1740401435849,-500.0,0.00016438,2]
[354299618,1740401435858,-500.0,0.00016438,2]
[354299620,1740401435867,-500.0,0.00016438,2]
[354299621,1740401435876,-500.0,0.00016438,2]
[354299623,1740401435885,-500.0,0.00016438,2]
[354299626,1740401435895,-500.0,0.00016438,2]
[354299627,1740401435903,-500.0,0.00016438,2]
[354299629,1740401435912,-269.51968665,0.00016438,2]
[354299631,1740401435921,-500.0,0.00016438,2]
[354299633,1740401435930,-500.0,0.00016438,2]
[354299635,1740401435939,-500.0,0.00016438,2]
[354299637,1740401435948,-500.0,0.00016438,2]
[354299639,1740401435957,-500.0,0.00016438,2]
[354299641,1740401435966,-500.0,0.00016438,2]
[354299643,1740401435976,-163.08,0.00016438,2]
[354299645,1740401435985,-521.59582307,0.00016438,2]
[354299647,1740401435994,-500.0,0.00016438,2]
[354299649,1740401436003,-500.0,0.00016438,2]
[354299651,1740401436012,-500.0,0.00016438,2]
[354299653,1740401436021,-509.7951071,0.00016438,2]
[354299655,1740401436031,-502.66383571,0.00016438,2]
[354299657,1740401436040,-500.0,0.00016438,2]
[354299659,1740401436049,-500.0,0.00016438,2]
[354299661,1740401436058,-500.0,0.00016438,2]
[354299663,1740401436067,-507.06226117,0.00016438,2]
[354299665,1740401436076,-600.77900021,0.00016438,2]
[354299667,1740401436085,-500.0,0.00016438,2]
[354299669,1740401436095,-500.0,0.00016438,2]
[354299671,1740401436104,-218.19253643,0.00016438,2]
[354299673,1740401436113,-200.0,0.00016438,2]
[354299675,1740401436123,-500.0,0.00016438,2]
[354299677,1740401436132,-500.0,0.00016438,2]
[354299679,1740401436142,-500.0,0.00016438,2]
[354299681,1740401436151,-500.0,0.00016438,2]
[354299683,1740401436160,-1000.0,0.00016438,6]
[354299685,1740401436170,-1003.87,0.00016438,2]
[354299688,1740401436179,-55229.96983232,0.00016438,2]
[354299689,1740401436189,-150.0,0.00016438,2]
[354299691,1740401436198,-500.0,0.00016454,2]
[354299693,1740401436207,-500.0,0.00016454,2]
[354299696,1740401436217,-200.0,0.00016454,2]
[354299698,1740401436227,-500.0,0.00016465,2]
[354299700,1740401436237,-14056.68984302,0.000165,2]
[354299702,1740401436246,-178.12,0.000165,10]
[354299704,1740401436256,-3829.7358,0.000165,2]
[354299706,1740401436265,-306.21331302,0.000165,2]
[354299707,1740401436275,-364.71,0.00016518,2]
[354299709,1740401436284,-500.0,0.00016518,2]
[354299711,1740401436294,-500.0,0.00016518,2]
[354299713,1740401436303,-500.0,0.00016518,2]
[354299716,1740401436312,-500.0,0.00016518,2]
[354299718,1740401436321,-581.13458765,0.00016518,2]
[354299719,1740401436331,-216.17820799,0.00016518,2]
[354299721,1740401436340,-500.0,0.00016518,2]
[354299723,1740401436349,-500.0,0.00016518,2]
[354299725,1740401436358,-500.0,0.00016518,2]
[354299728,1740401436368,-500.0,0.00016518,2]
[354299730,1740401436377,-500.0,0.00016518,2]
[354299731,1740401436386,-500.0,0.00016518,2]
[354299733,1740401436395,-500.0,0.00016518,2]
[354299735,1740401436404,-617.62,0.00016518,2]
[354299737,1740401436414,-500.0,0.00016518,2]
[354299739,1740401436423,-500.0,0.00016518,2]
[354299741,1740401436432,-326.88,0.00016518,2]
[354299743,1740401436442,-500.0,0.00016518,2]
[354299745,1740401436451,-500.0,0.00016518,2]
[354299747,1740401436461,-500.0,0.00016518,2]
[354299749,1740401436471,-500.0,0.00016518,2]
[354299751,1740401436480,-500.0,0.00016518,2]
[354299753,1740401436490,-500.0,0.00016518,2]
[354299755,1740401436499,-507.03991762,0.00016518,2]
[354299757,1740401436508,-422.56862223,0.00016519,2]
[354299759,1740401436517,-416.59925054,0.00016519,2]
[354299761,1740401436526,-500.0,0.00016519,2]
[354299763,1740401436534,-328.21197011,0.00016519,2]
[354299765,1740401436544,-500.0,0.00016519,2]
[354299767,1740401436553,-500.0,0.00016519,2]
[354299769,1740401436562,-500.0,0.00016519,2]
[354299771,1740401436571,-517.1840961,0.00016519,2]
[354299773,1740401436580,-512.45497478,0.00016519,2]
[354299775,1740401436590,-336.38760716,0.00016519,2]
[354299777,1740401436599,-500.0,0.00016519,2]
[354299779,1740401436608,-511.91904749,0.00016519,2]
[354299781,1740401436617,-500.0,0.00016519,2]
[354299783,1740401436626,-500.0,0.00016519,2]
[354299785,1740401436635,-500.0,0.00016519,2]
[354299787,1740401436644,-500.0,0.00016519,2]
[354299789,1740401436653,-500.0,0.00016519,2]
[354299791,1740401436662,-500.0,0.00016519,2]
[354299793,1740401436671,-500.0,0.00016519,2]
[354299795,1740401436681,-629.83336873,0.00016519,2]
[354299797,1740401436690,-500.0,0.00016519,2]
[354299799,1740401436699,-500.0,0.00016519,2]
[354299801,1740401436708,-500.0,0.00016519,2]
[354299803,1740401436717,-500.0,0.00016519,2]
[354299805,1740401436727,-503.79504873,0.00016519,2]
[354299807,1740401436737,-500.0,0.00016519,2]
[354299809,1740401436746,-500.0,0.00016519,2]
[354299811,1740401436759,-500.0,0.00016519,2]
[354299813,1740401436768,-460.84374356,0.00016519,2]
[354299815,1740401436778,-500.0,0.00016519,2]
[354299817,1740401436787,-504.22202369,0.00016519,2]
[354299819,1740401436796,-500.0,0.00016519,2]
[354299821,1740401436806,-587.51172818,0.00016519,2]
[354299823,1740401436815,-500.0,0.00016519,2]
[354299825,1740401436824,-500.0,0.00016519,2]
[354299827,1740401436833,-500.0,0.00016519,2]
[354299829,1740401436843,-507.0530933,0.00016519,2]
[354299831,1740401436852,-500.0,0.00016519,2]
[354299833,1740401436862,-500.0,0.00016519,2]
[354299835,1740401436871,-500.0,0.00016519,2]
[354299837,1740401436880,-500.0,0.00016519,2]
[354299839,1740401436889,-500.0,0.00016519,2]
[354299841,1740401436898,-500.0,0.00016519,2]
[354299843,1740401436907,-500.0,0.00016519,2]
[354299845,1740401436916,-500.0,0.00016519,2]
[354299847,1740401436925,-500.0,0.00016519,2]
[354299849,1740401436935,-500.0,0.00016519,2]
[354299851,1740401436945,-612.33117822,0.00016519,2]
[354299854,1740401436954,-500.0,0.00016519,2]
[354299856,1740401436963,-511.65745417,0.00016519,2]
[354299858,1740401436972,-500.0,0.00016519,2]
[354299876,1740401437128,-364.73730841,0.00016519,2]
[354299878,1740401437138,-500.0,0.00016519,2]
[354299880,1740401437147,-504.13622292,0.00016519,2]
[354299882,1740401437156,-500.0,0.00016519,2]
[354299884,1740401437165,-500.0,0.00016519,2]
[354299886,1740401437174,-500.0,0.00016519,2]
[354299888,1740401437183,-500.0,0.00016519,2]
[354299890,1740401437192,-500.0,0.00016519,2]
[354299892,1740401437201,-500.0,0.00016519,2]
[354299894,1740401437210,-500.0,0.00016519,2]
[354299896,1740401437219,-505.56775315,0.00016519,2]
[354299898,1740401437228,-500.0,0.00016519,2]
[354299900,1740401437238,-500.0,0.00016519,2]
[354299901,1740401437247,-358.0399701,0.00016519,2]
[354299902,1740401437256,-500.0,0.00016519,2]
[354299903,1740401437265,-500.0,0.00016519,2]
[354299904,1740401437274,-500.0,0.00016519,2]
[354299905,1740401437283,-500.0,0.00016519,2]
[354299906,1740401437291,-397.08,0.00016519,2]
[354299907,1740401437300,-500.0,0.00016519,2]
[354299908,1740401437308,-500.0,0.00016519,2]
[354299909,1740401437317,-500.0,0.00016519,2]
[354299910,1740401437326,-500.0,0.00016519,2]
[354299911,1740401437335,-500.0,0.00016519,2]
[354299912,1740401437345,-503.33,0.00016519,2]
[354299913,1740401437354,-500.0,0.00016519,2]
[354299914,1740401437364,-304.57197039,0.00016519,2]
[354299915,1740401437373,-410.42309567,0.00016519,2]
[354299917,1740401437382,-500.0,0.00016519,2]
[354299920,1740401437390,-500.0,0.00016519,2]
[354299923,1740401437399,-500.0,0.00016519,2]
[354299928,1740401437412,-190.99310301,0.00016519,2]
[354299932,1740401437421,-245.02763589,0.00016519,2]
[354299936,1740401437431,-500.0,0.00016519,2]
[354299940,1740401437440,-509.33571855,0.00016519,2]
[354299943,1740401437450,-500.0,0.00016519,2]
[354299947,1740401437459,-500.0,0.00016519,2]
[354299950,1740401437468,-500.0,0.00016519,2]
[354299952,1740401437480,-242.64526062,0.00016519,2]
[354299954,1740401437489,-500.0,0.00016519,2]
[354299956,1740401437499,-500.0,0.00016519,2]
[354299958,1740401437507,-500.0,0.00016519,2]
[354299960,1740401437517,-500.0,0.00016519,2]
[354299962,1740401437526,-500.0,0.00016519,2]
[354299964,1740401437535,-1000.0,0.00016519,2]
[354299966,1740401437543,-500.0,0.00016519,2]
[354299968,1740401437552,-449.13346383,0.00016519,2]
[354299970,1740401437561,-500.0,0.00016519,2]
[354299972,1740401437571,-500.0,0.00016519,2]
[354299974,1740401437580,-500.0,0.00016519,2]
[354299976,1740401437589,-500.0,0.00016519,2]
[354299978,1740401437598,-500.0,0.00016519,2]
[354299980,1740401437607,-500.0,0.00016519,2]
[354299982,1740401437616,-442.55330852,0.00016519,2]
[354299984,1740401437625,-500.0,0.00016519,2]
[354299986,1740401437635,-286.2,0.00016519,2]
[354299988,1740401437644,-500.0,0.00016519,2]
[354299990,1740401437654,-508.97610657,0.00016519,2]
[354299992,1740401437663,-530.24528152,0.00016519,2]
[354299994,1740401437672,-507.83332338,0.00016519,2]
[354299996,1740401437681,-503.30357806,0.00016519,2]
[354299998,1740401437690,-500.0,0.00016519,2]
[354300000,1740401437699,-500.0,0.00016519,2]
[354300002,1740401437709,-514.46753003,0.00016519,2]
[354300004,1740401437718,-500.0,0.00016519,2]
[354300006,1740401437729,-517.81204605,0.00016519,2]
[354300008,1740401437738,-500.0,0.00016519,2]
[354300010,1740401437747,-500.0,0.00016519,2]
[354300012,1740401437760,-500.0,0.00016519,2]
[354300014,1740401437769,-500.0,0.00016519,2]
[354300016,1740401437778,-500.0,0.00016519,2]
[354300018,1740401437787,-500.0,0.00016519,2]
[354300020,1740401437798,-513.71979814,0.00016519,2]
[354300022,1740401437807,-500.0,0.00016519,2]
[354300024,1740401437817,-500.0,0.00016519,2]
[354300026,1740401437827,-500.0,0.00016519,2]
[354300028,1740401437836,-500.0,0.00016519,2]
[354300030,1740401437846,-559.54029981,0.00016519,2]
[354300032,1740401437855,-283.79583465,0.00016519,2]
[354300034,1740401437864,-500.0,0.00016519,2]
[354300036,1740401437873,-409.75532962,0.00016519,2]
[354300038,1740401437883,-508.02350745,0.00016519,2]
[354300040,1740401437892,-463.38884157,0.00016519,2]
[354300042,1740401437901,-319.8125048,0.00016519,2]
[354300044,1740401437910,-323.74665536,0.00016519,2]
[354300046,1740401437919,-204.29167083,0.00016519,2]
[354300048,1740401437928,-502.72546797,0.00016519,2]
[354300050,1740401437937,-505.80776128,0.00016519,2]
[354300052,1740401437948,-500.0,0.00016519,2]
[354300054,1740401437957,-500.0,0.00016519,2]
[354300056,1740401437966,-500.0,0.00016519,2]
[354300058,1740401437975,-500.0,0.00016519,2]
[354300060,1740401437984,-500.0,0.00016519,2]
[354300062,1740401437993,-500.0,0.00016519,2]
[354300064,1740401438002,-500.0,0.00016519,2]
[354300066,1740401438011,-500.0,0.00016519,2]
[354300068,1740401438021,-500.0,0.00016519,2]
[354300070,1740401438031,-507.27402058,0.00016519,2]
[354300074,1740401438040,-500.0,0.00016519,2]
[354300075,1740401438051,-500.0,0.00016519,2]
[354300077,1740401438060,-500.0,0.00016519,2]
[354300080,1740401438069,-411.37396139,0.00016519,2]
[354300082,1740401438079,-546.99,0.00016519,2]
[354300083,1740401438088,-500.0,0.00016519,2]
[354300086,1740401438097,-302.37,0.00016519,2]
[354300088,1740401438107,-302.34857089,0.00016519,2]
[354300090,1740401438116,-500.0,0.00016519,2]
[354300092,1740401438126,-500.0,0.00016519,2]
[354300094,1740401438135,-188.10143265,0.00016519,2]
[354300096,1740401438145,-559.53,0.00016519,2]
[354300098,1740401438154,-172.30997935,0.00016519,2]
[354300100,1740401438163,-500.0,0.00016519,2]
[354300102,1740401438172,-500.0,0.00016519,2]
[354300104,1740401438181,-640.05,0.00016519,2]
[354300105,1740401438190,-500.0,0.00016519,2]
[354300107,1740401438199,-500.0,0.00016519,2]
[354300109,1740401438209,-500.0,0.00016519,2]
[354300112,1740401438218,-500.0,0.00016519,2]
[354300114,1740401438228,-240.7,0.00016519,2]
[354300116,1740401438237,-500.0,0.00016519,2]
[354300118,1740401438246,-500.0,0.00016519,2]
[354300120,1740401438255,-500.0,0.00016519,2]
[354300122,1740401438264,-500.0,0.00016519,2]
[354300124,1740401438274,-198.27,0.00016519,2]
[354300126,1740401438283,-500.0,0.00016519,2]
[354300128,1740401438292,-500.0,0.00016519,2]
[354300130,1740401438300,-500.0,0.00016519,2]
[354300131,1740401438309,-500.0,0.00016519,2]
[354300133,1740401438319,-280.41344119,0.00016519,2]
[354300135,1740401438327,-500.0,0.0001652,2]
[354300138,1740401438337,-505.09591891,0.0001652,2]
[354300139,1740401438346,-512.57742497,0.0001652,2]
[354300141,1740401438355,-505.76887174,0.0001652,2]
[354300143,1740401438364,-645.95381825,0.0001652,2]
[354300145,1740401438374,-633.36758795,0.0001652,2]
[354300147,1740401438384,-508.94269624,0.0001652,2]
[354300149,1740401438393,-500.0,0.0001652,2]
[354300152,1740401438403,-505.94172968,0.0001652,2]
[354300153,1740401438412,-500.0,0.0001652,2]
[354300155,1740401438421,-500.0,0.0001652,2]
[354300157,1740401438430,-500.0,0.0001652,2]
[354300159,1740401438439,-393.25,0.0001652,2]
[354300161,1740401438448,-500.0,0.0001652,2]
[354300163,1740401438458,-1909.72,0.0001652,2]
[354300166,1740401438467,-500.0,0.0001652,2]
[354300167,1740401438477,-500.0,0.0001652,2]
[354300169,1740401438486,-500.0,0.0001652,2]
[354300171,1740401438495,-500.0,0.0001652,2]
[354300173,1740401438504,-500.0,0.0001652,2]
[354300176,1740401438514,-518.73349092,0.0001652,2]
[354300177,1740401438523,-510.33150753,0.0001652,2]
[354300179,1740401438533,-500.0,0.0001652,2]
[354300182,1740401438542,-519.78010797,0.0001652,2]
[354300183,1740401438551,-500.0,0.0001652,2]
[354300186,1740401438561,-593.68423918,0.0001652,2]
[354300188,1740401438571,-500.0,0.0001652,2]
[354300190,1740401438580,-507.95227386,0.0001652,2]
[354300192,1740401438590,-507.02484888,0.0001652,2]
[354300193,1740401438599,-508.16863979,0.0001652,2]
[354300195,1740401438609,-500.0,0.0001652,2]
[354300197,1740401438618,-427.68985327,0.0001652,2]
[354300199,1740401438627,-205.26292722,0.0001652,2]
[354300201,1740401438636,-500.0,0.0001652,2]
[354300203,1740401438646,-150.52833529,0.0001652,2]
[354300205,1740401438656,-646.7090269,0.0001652,2]
[354300207,1740401438665,-505.8247239,0.0001652,2]
[354300209,1740401438674,-502.95502584,0.0001652,2]
[354300211,1740401438684,-400.44291871,0.0001652,2]
[354300213,1740401438693,-500.0,0.00016547,2]
[354300215,1740401438703,-700.0,0.00016547,2]
[354300217,1740401438712,-1000.0,0.00016547,2]
[354300219,1740401438722,-996.4,0.00016599,2]
[354300221,1740401438732,-500.0,0.00016599,2]
[354300223,1740401438741,-351.27442,0.00016599,2]
[354300225,1740401438751,-369426.09186673,0.000166,4]
[354300227,1740401438762,-739.9,0.000166,2]
[354300229,1740401438772,-500.0,0.000166,2]
[354300231,1740401438781,-500.0,0.000166,2]
[354300233,1740401438790,-500.0,0.000166,2]
[354300235,1740401438799,-1000.0,0.000166,2]
[354300237,1740401438809,-1000.0,0.000166,2]
[354300239,1740401438818,-1000.0,0.000166,2]
[354300241,1740401438827,-1000.0,0.000166,2]
[354300243,1740401438836,-1000.0,0.000166,2]
[354300245,1740401438845,-1000.0,0.000166,2]
[354300247,1740401438855,-1000.0,0.000166,2]
[354300249,1740401438864,-1000.0,0.000166,2]
[354300251,1740401438873,-1000.0,0.000166,2]
[354300253,1740401438883,-1000.0,0.000166,2]
[354300255,1740401438892,-277.89,0.000166,2]
[354300257,1740401438901,-500.0,0.000166,2]
[354300259,1740401438910,-267.76,0.000166,2]
[354300261,1740401438919,-500.0,0.000166,2]
[354300263,1740401438927,-500.0,0.000166,2]
[354300265,1740401438936,-500.0,0.000166,2]
[354300267,1740401438945,-500.0,0.000166,2]
[354300269,1740401438954,-500.0,0.000166,2]
[354300272,1740401438965,-513.90332906,0.00016601,2]
[354300274,1740401438974,-500.0,0.00016601,2]
[354300276,1740401438983,-554.46199383,0.00016601,2]
[354300278,1740401438993,-361.90524863,0.00016601,2]
[354300280,1740401439002,-357.06334275,0.00016601,2]
[354300282,1740401439011,-500.0,0.00016601,2]
[354300284,1740401439020,-500.0,0.00016601,2]
[354300286,1740401439029,-500.0,0.00016601,2]
[354300288,1740401439038,-505.18957208,0.00016601,2]
[354300290,1740401439047,-500.0,0.00016601,2]
[354300292,1740401439056,-500.0,0.00016601,2]
[354300294,1740401439066,-500.0,0.00016601,2]
[354300296,1740401439075,-527.40016565,0.00016601,2]
[354300298,1740401439085,-500.0,0.00016601,2]
[354300300,1740401439094,-197.56302229,0.00016601,2]
[354300302,1740401439104,-500.0,0.00016601,2]
[354300304,1740401439116,-500.0,0.00016601,2]
[354300306,1740401439127,-500.0,0.00016601,2]
[354300309,1740401439139,-637.44447965,0.00016601,2]
[354300311,1740401439150,-594.69002901,0.00016601,2]
[354300313,1740401439160,-500.0,0.00016601,2]
[354300315,1740401439172,-456.70802722,0.00016601,2]
[354300317,1740401439182,-510.33548369,0.00016601,2]
[354300319,1740401439192,-500.0,0.00016601,2]
[354300321,1740401439203,-500.0,0.00016601,2]
[354300323,1740401439214,-365.92587129,0.00016601,2]
[354300326,1740401439225,-500.0,0.00016601,2]
[354300328,1740401439236,-500.0,0.00016601,2]
[354300330,1740401439246,-500.0,0.00016601,2]
[354300332,1740401439257,-500.0,0.00016601,2]
[354300334,1740401439267,-500.0,0.00016601,2]
[354300336,1740401439278,-500.0,0.00016601,2]
[354300338,1740401439289,-500.0,0.00016601,2]
[354300341,1740401439299,-500.0,0.00016601,2]
[354300343,1740401439309,-188.47872879,0.00016601,2]
[354300345,1740401439320,-558.23597684,0.00016601,2]
[354300347,1740401439330,-500.0,0.00016601,2]
[354300350,1740401439342,-500.0,0.00016601,2]
[354300353,1740401439352,-500.0,0.00016601,2]
[354300355,1740401439363,-500.0,0.00016601,2]
[354300357,1740401439372,-221.38,0.00016601,2]
[354300359,1740401439383,-500.0,0.00016601,2]
[354300361,1740401439393,-519.71,0.00016601,2]
[354300363,1740401439402,-500.0,0.00016601,2]
[354300367,1740401439412,-213.03829489,0.00016601,2]
[354300370,1740401439422,-500.0,0.00016601,2]
[354300373,1740401439432,-500.0,0.00016601,2]
[354300375,1740401439442,-514.76477592,0.00016601,2]
[354300377,1740401439452,-634.80119754,0.00016601,2]
[354300379,1740401439462,-500.0,0.00016601,2]
[354300381,1740401439473,-500.0,0.00016601,2]
[354300383,1740401439483,-500.0,0.00016601,2]
[354300385,1740401439493,-500.0,0.00016601,2]
[354300388,1740401439503,-640.20921852,0.00016601,2]
[354300390,1740401439513,-500.0,0.00016601,2]
[354300392,1740401439524,-500.0,0.00016601,2]
[354300394,1740401439534,-537.94565199,0.00016601,2]
[354300396,1740401439544,-1000.0,0.00016601,2]
[354300398,1740401439555,-500.0,0.00016601,2]
[354300400,1740401439565,-500.0,0.00016601,2]
[354300403,1740401439576,-500.0,0.00016601,2]
[354300405,1740401439586,-500.0,0.00016601,2]
[354300407,1740401439596,-619.1393849,0.00016601,2]
[354300409,1740401439606,-500.0,0.00016601,2]
[354300411,1740401439616,-565.6990458,0.00016601,2]
[354300414,1740401439627,-500.0,0.00016601,2]
[354300416,1740401439636,-500.0,0.00016601,2]
[354300418,1740401439647,-291.9876073,0.00016601,2]
[354300420,1740401439657,-500.0,0.00016601,2]
[354300423,1740401439668,-500.0,0.00016601,2]
[354300425,1740401439678,-298.26691713,0.00016601,2]
[354300427,1740401439688,-500.0,0.00016601,2]
[354300429,1740401439698,-500.0,0.00016601,2]
[354300431,1740401439708,-500.0,0.00016601,2]
[354300433,1740401439720,-521.98996472,0.00016601,2]
[354300435,1740401439730,-500.0,0.00016601,2]
[354300437,1740401439740,-500.0,0.00016601,2]
[354300440,1740401439752,-500.0,0.00016601,2]
[354300442,1740401439764,-500.0,0.00016601,2]
[354300444,1740401439776,-203.87078496,0.00016601,2]
[354300446,1740401439786,-500.0,0.00016601,2]
[354300448,1740401439797,-500.0,0.00016601,2]